bitfinex/quotes_ETHUSD_20260227
["timestamp","ask_amount","ask_price","bid_price","bid_amount"]
[1772189132437,2.18610146,1995.5,1994.8,1.25325847]
[1772189132643,2.18610146,1995.4,1994.8,1.25325847]
[1772189134548,2.18610146,1995.3,1994.7,0.0011]
[1772189134870,2.18610146,1995.3,1994.8,0.0011]
[1772189136975,2.18610146,1995.2,1994.8,0.0011]
[1772189139259,2.18610146,1995.1,1994.8,0.0011]
[1772189141794,2.18610146,1995.3,1994.8,0.0011]
[1772189142567,2.18610146,1995.2,1994.8,0.0011]
[1772189146214,2.18610146,1995.4,1994.8,0.0011]
[1772189146897,0.001,1995.1,1994.8,1.25435847]
[1772189148211,2.18710146,1995.1,1994.8,0.0011]
[1772189150623,2.18610146,1995.0,1994.8,0.0011]
[1772189155705,0.001,1995.1,1994.8,0.0011]
[1772189155706,2.18710146,1995.1,1994.8,0.0011]
[1772189156822,1.2540758,1995.1,1994.8,0.0011]
[1772189157025,2.18610146,1995.0,1994.8,0.0011]
[1772189158411,2.18610146,1995.0,1994.9,0.0011]
[1772189158719,2.18710146,1995.0,1994.9,0.0011]
[1772189160906,2.18710146,1995.0,1994.4,5.22090755]
[1772189161107,2.18555146,1994.9,1994.4,5.22090755]
[1772189164416,0.001,1995.0,1994.6,0.40252353]
[1772189165032,0.001,1995.0,1994.7,1.2533213]
[1772189168211,2.18655146,1995.1,1994.8,0.40252353]
[1772189168427,0.001,1995.1,1994.8,0.40252353]
[1772189169619,2.18655146,1995.1,1994.8,0.40252353]
[1772189169942,0.001,1995.1,1994.8,0.40252353]
[1772189170121,2.18555146,1995.3,1994.9,0.40252353]
[1772189170323,2.18555146,1995.6,1995.1,0.40252353]
[1772189171354,2.58807499,1995.6,1994.9,1.65567679]
[1772189172440,2.18555146,1995.5,1994.5,5.01476897]
[1772189172616,2.18555146,1995.5,1994.8,0.40252353]
[1772189174937,2.18555146,1995.4,1994.9,1.25319564]
[1772189176722,1.76022337,1995.1,1994.6,2.02449192]
[1772189177116,1.76022337,1995.1,1994.7,0.76924088]
[1772189177316,1.76022337,1995.4,1995.0,0.76924088]
[1772189177948,1.76022337,1995.4,1994.8,0.76924088]
[1772189178873,1.76022337,1995.1,1994.6,2.02068295]
[1772189179323,1.76022337,1995.1,1994.7,0.76547598]
[1772189181961,1.76022337,1995.1,1994.7,2.01876999]
[1772189182460,1.76022337,1995.0,1994.7,2.01876999]
[1772189182669,1.76022337,1995.0,1994.5,2.0146033]
[1772189183652,1.76022337,1995.0,1994.7,0.0011]
[1772189183865,1.76122337,1995.0,1994.7,0.0011]
[1772189185161,1.76022337,1994.9,1994.7,0.0011]
[1772189186579,1.76022337,1994.9,1994.5,0.0011]
[1772189187303,1.76022337,1994.8,1994.5,1.25454643]
[1772189189886,1.76022337,1994.8,1994.5,2.003782]
[1772189191370,1.76022337,1994.8,1994.5,0.0011]
[1772189192503,1.76022337,1994.7,1994.2,0.64790192]
[1772189192822,1.76022337,1994.7,1994.3,0.64680192]
[1772189194515,1.76022337,1994.5,1994.2,0.0011]
[1772189196040,1.76022337,1994.5,1994.3,0.0011]
[1772189196412,1.76022337,1994.5,1994.2,0.0011]
[1772189197544,1.76022337,1994.7,1994.2,0.63512991]
[1772189198526,1.76022337,1994.7,1994.3,0.62911192]
[1772189198729,1.75000177,1994.9,1994.3,0.62911192]
[1772189199129,1.75000177,1994.9,1994.5,0.6266923]
[1772189200347,1.83109431,1994.8,1994.3,1.25352182]
[1772189200939,1.83109431,1994.8,1994.3,1.87547718]
[1772189201126,1.25328135,1994.8,1994.3,1.87547718]
[1772189201322,1.83109431,1994.7,1994.3,1.87547718]
[1772189205224,1.83109431,1994.7,1994.4,0.61058181]
[1772189205427,1.83109431,1994.7,1994.2,0.60472694]
[1772189205623,1.83109431,1994.7,1994.3,0.61058181]
[1772189207551,1.83109431,1994.7,1994.4,1.86081116]
[1772189208054,1.83209431,1994.7,1994.4,1.86081116]
[1772189208955,1.83209431,1994.7,1994.4,0.0011]
[1772189209152,1.83109431,1994.6,1994.3,0.0011]
[1772189209537,1.83109431,1994.4,1994.3,0.0011]
[1772189211176,1.83109431,1994.6,1994.3,0.0011]
[1772189211375,1.83109431,1994.6,1994.3,0.59995096]
[1772189211832,1.83109431,1994.6,1994.3,0.0011]
[1772189213058,1.83109431,1994.5,1994.3,0.0011]
[1772189215860,1.83109431,1994.4,1994.1,0.0011]
[1772189217262,1.83109431,1994.4,1994.1,0.5880105]
[1772189218565,3.08454186,1994.5,1994.1,0.5880105]
[1772189219158,1.83109431,1994.4,1994.1,0.5880105]
[1772189219969,1.83109431,1994.4,1994.2,0.0011]
[1772189221174,1.83109431,1994.5,1994.2,0.58043713]
[1772189222333,1.83109431,1994.5,1994.2,0.0011]
[1772189224850,1.25344961,1994.5,1994.2,0.0011]
[1772189225074,1.83109431,1994.4,1994.1,0.0011]
[1772189228062,1.83109431,1994.2,1994.1,0.0011]
[1772189230038,1.83109431,1994.2,1994.0,0.0011]
[1772189235374,1.86926746,1994.1,1993.7,0.0011]
[1772189235969,1.86926746,1993.9,1993.7,0.0011]
[1772189236667,1.86926746,1993.7,1993.5,0.0011]
[1772189236878,1.86926746,1993.7,1993.4,0.0011]
[1772189237053,1.86926746,1993.5,1993.0,0.55425882]
[1772189237448,1.86926746,1993.5,1992.7,1.25452776]
[1772189237653,1.86926746,1993.5,1992.7,1.80878658]
[1772189238260,1.86926746,1993.3,1992.7,1.80878658]
[1772189239282,1.86926746,1993.1,1992.7,1.80878658]
[1772189239655,1.86926746,1993.1,1992.6,1.25459124]
[1772189239855,2.27256462,1993.1,1992.5,0.55126237]
[1772189240050,2.27256462,1993.1,1992.4,1.25473118]
[1772189240051,1.86926746,1992.9,1992.4,1.25473118]
[1772189240579,1.86926746,1992.9,1992.3,1.80458445]
[1772189240756,1.86926746,1992.5,1992.0,0.54980446]
[1772189240957,1.86926746,1992.5,1992.1,0.95310162]
[1772189241185,1.25472027,1992.5,1992.0,1.65829804]
[1772189241387,2.27256462,1992.1,1991.4,0.54838431]
[1772189241583,2.27256462,1992.1,1991.4,0.95168147]
[1772189241584,1.86926746,1992.1,1991.4,0.95168147]
[1772189241896,2.27256462,1992.1,1991.4,0.54838431]
[1772189242371,1.86926746,1992.1,1991.4,0.95168147]
[1772189242764,1.86926746,1992.1,1991.5,0.40329716]
[1772189242956,1.86926746,1992.3,1991.5,0.5469683]
[1772189243152,1.86926746,1992.3,1991.8,0.54556747]
[1772189243354,1.25483608,1992.3,1991.8,1.25510667]
[1772189243585,1.86926746,1992.2,1991.8,1.25510667]
[1772189243879,1.86926746,1992.2,1991.7,1.25516131]
[1772189244183,2.27256462,1992.0,1991.4,1.25536142]
[1772189244385,1.86926746,1992.0,1991.4,1.25536142]
[1772189244684,1.86926746,1992.0,1991.4,1.65865858]
[1772189244895,2.27256462,1992.7,1991.9,0.94857913]
[1772189245108,2.27256462,1992.2,1991.9,0.0011]
[1772189245259,1.86926746,1992.1,1991.9,0.0011]
[1772189245464,2.27256462,1992.1,1991.9,0.0011]
[1772189245661,1.86926746,1992.1,1991.9,0.0011]
[1772189247790,1.86926746,1992.4,1991.9,0.40439716]
[1772189248555,1.86926746,1992.4,1992.0,0.40329716]
[1772189249893,1.86926746,1992.4,1992.1,1.25495708]
[1772189250384,1.86926746,1992.4,1992.0,1.25497072]
[1772189251690,2.27256462,1992.9,1992.1,3.51767255]
[1772189251877,1.86926746,1992.8,1992.2,1.25489408]
[1772189253990,1.86926746,1992.3,1991.9,0.0011]
[1772189256293,1.86926746,1992.5,1991.9,0.0011]
[1772189256869,1.86926746,1992.5,1992.0,0.0011]
[1772189258890,1.85374517,1992.3,1992.0,0.0011]
[1772189259112,1.85374517,1992.3,1991.7,0.0011]
[1772189259272,2.55152236,1991.8,1990.8,1.25574758]
[1772189259590,1.85374517,1991.5,1990.5,0.50893202]
[1772189259769,1.85374517,1991.5,1990.7,2.0184815]
[1772189259963,1.74906609,1991.7,1991.0,0.50615901]
[1772189260768,1.74906609,1991.7,1990.7,2.52189993]
[1772189260969,3.00427598,1991.7,1990.9,0.50341843]
[1772189261170,1.74906609,1991.7,1990.9,0.50341843]
[1772189261370,1.74906609,1991.6,1990.9,0.50341843]
[1772189261667,1.74906609,1991.6,1990.2,1.25615516]
[1772189261982,1.25520983,1991.7,1990.3,0.50072959]
[1772189261983,1.74906609,1991.2,1990.3,0.50072959]
[1772189262183,1.74906609,1991.2,1990.1,1.26216744]
[1772189262387,1.74906609,1991.1,1990.1,1.26216744]
[1772189263098,1.74906609,1991.4,1990.7,2.0184815]
[1772189263269,3.00448202,1991.4,1990.5,2.51391046]
[1772189263472,3.00448202,1991.4,1990.7,2.51391046]
[1772189263473,1.74906609,1991.4,1990.7,2.51391046]
[1772189263786,1.74906609,1991.7,1990.9,2.0184815]
[1772189264178,3.00396071,1992.2,1991.5,2.0184815]
[1772189264478,3.00396071,1992.2,1991.3,2.0184815]
[1772189264996,1.74906609,1992.5,1991.6,1.25527214]
[1772189265171,1.74906609,1992.5,1991.7,2.0184815]
[1772189265371,1.74906609,1992.5,1991.6,1.25527214]
[1772189265595,1.74906609,1992.5,1991.6,1.7454921]
[1772189266097,0.001,1992.7,1992.1,2.0184815]
[1772189266526,3.85232724,1993.1,1992.1,2.0184815]
[1772189266527,1.74906609,1993.1,1992.3,2.0184815]
[1772189266685,4.68117452,1993.8,1992.0,2.0184815]
[1772189266686,1.74906609,1993.3,1992.2,2.58014459]
[1772189267075,1.74906609,1993.1,1992.3,1.25483109]
[1772189267583,1.25426449,1993.2,1991.8,1.25508308]
[1772189267584,1.74906609,1992.9,1991.8,1.25508308]
[1772189267783,1.74906609,1992.9,1991.8,3.27356458]
[1772189268183,1.74906609,1992.9,1991.9,2.0184815]
[1772189268612,1.74906609,1992.9,1991.8,1.73771349]
[1772189268613,1.74906609,1992.9,1991.8,1.25508308]
[1772189268791,1.74906609,1992.7,1991.8,1.25508308]
[1772189268990,1.74906609,1992.5,1992.3,0.0011]
[1772189269509,1.74906609,1992.5,1992.2,0.0011]
[1772189271618,3.00377391,1992.5,1992.2,0.0011]
[1772189272915,1.74906609,1992.4,1992.2,0.0011]
[1772189273616,5.01844062,1992.7,1992.2,0.0011]
[1772189273617,1.25461062,1992.7,1992.2,0.0011]
[1772189273920,1.74906609,1992.6,1992.2,0.0011]
[1772189274118,1.74906609,1992.8,1992.2,0.0011]
[1772189275937,1.74906609,1992.8,1992.2,1.25599408]
[1772189276889,1.74906609,1992.7,1992.2,1.25599408]
[1772189277425,0.001,1993.0,1992.7,0.46141101]
[1772189277635,0.001,1993.4,1992.9,2.0184815]
[1772189277795,0.001,1993.4,1993.1,2.0184815]
[1772189278003,0.001,1993.4,1993.2,1.25426449]
[1772189278622,1.74906609,1993.8,1993.2,1.25426449]
[1772189278828,0.001,1993.7,1993.2,1.25426449]
[1772189279308,3.00281506,1994.1,1993.3,2.0184815]
[1772189279635,1.74906609,1993.9,1993.2,1.25426449]
[1772189280003,1.25388704,1993.8,1992.9,5.01780258]
[1772189280334,0.001,1993.8,1993.2,2.0184815]
[1772189280534,1.74906609,1994.1,1993.4,2.0184815]
[1772189280694,1.25454277,1994.4,1992.9,5.01780258]
[1772189280695,1.75006609,1994.4,1993.6,2.0184815]
[1772189280900,1.74906609,1994.3,1993.2,0.45482263]
[1772189281628,1.74906609,1994.3,1993.3,2.0184815]
[1772189282005,1.25363554,1994.2,1993.4,1.25413865]
[1772189282203,1.74906609,1994.1,1993.4,1.25413865]
[1772189282413,1.74906609,1994.1,1993.3,1.2541638]
[1772189283610,1.74906609,1994.1,1993.3,3.2726453]
[1772189284131,3.00282737,1994.0,1993.2,5.0169976]
[1772189284305,1.82595428,1994.3,1993.3,2.0184815]
[1772189284898,1.82595428,1994.3,1993.5,2.0184815]
[1772189285098,1.82595428,1994.3,1993.3,2.0184815]
[1772189285338,1.82595428,1994.3,1993.2,5.0169976]
[1772189286398,1.25363554,1994.2,1993.2,5.0169976]
[1772189286616,1.82595428,1994.1,1993.2,5.0169976]
[1772189288232,1.25363554,1994.2,1992.8,1.25451625]
[1772189288233,1.82595428,1993.9,1992.8,1.25451625]
[1772189288429,1.82595428,1993.7,1992.7,5.01813485]
[1772189288631,1.82595428,1993.7,1992.8,2.0184815]
[1772189291029,3.07996712,1993.6,1992.8,3.27294172]
[1772189291337,3.07996712,1993.6,1992.8,1.25446022]
[1772189292905,3.07996712,1993.6,1992.7,5.01813485]
[1772189294336,3.07996712,1993.6,1992.7,1.25457921]
[1772189294524,1.82595428,1993.5,1992.9,0.0011]
[1772189295037,1.82595428,1993.3,1992.9,0.0011]
[1772189295739,1.82595428,1993.3,1992.6,0.0011]
[1772189297221,1.82595428,1993.1,1992.6,0.0011]
[1772189299640,3.08034464,1993.0,1992.6,0.0011]
[1772189299934,1.82595428,1992.9,1992.6,0.0011]
[1772189301146,1.82595428,1992.9,1992.4,0.0011]
[1772189301850,1.82595428,1992.7,1992.2,0.0011]
[1772189304544,3.08004645,1992.6,1992.2,0.0011]
[1772189305729,1.82540428,1992.5,1992.2,0.0011]
[1772189306055,1.82540428,1992.5,1992.0,0.0011]
[1772189306350,1.82540428,1992.5,1991.4,1.25539155]
[1772189306747,1.82540428,1992.3,1991.1,5.02232783]
[1772189307040,1.82540428,1992.2,1990.9,5.02282855]
[1772189307841,1.82540428,1992.2,1992.0,0.0011]
[1772189308219,1.82540428,1992.2,1990.9,5.02282855]
[1772189308952,1.82540428,1992.0,1990.9,5.02282855]
[1772189309531,1.82540428,1992.0,1991.2,2.82464728]
[1772189309730,1.82540428,1992.0,1990.9,5.02282855]
[1772189310853,1.82540428,1992.0,1990.6,2.82464728]
[1772189311030,1.82540428,1991.8,1990.6,4.08055002]
[1772189311431,5.01982832,1992.2,1990.6,4.08055002]
[1772189311432,1.82540428,1992.4,1991.2,2.82464728]
[1772189313456,1.82540428,1992.2,1991.3,1.25546125]
[1772189316460,1.82540428,1992.2,1991.1,5.02184502]
[1772189316461,1.82540428,1992.0,1990.9,1.25571349]
[1772189318628,1.25508308,1991.9,1990.9,1.25571349]
[1772189318833,1.82540428,1991.8,1990.9,1.25571349]
[1772189319436,1.82540428,1991.8,1991.1,2.82464728]
[1772189319837,1.82540428,1991.8,1991.3,0.0011]
[1772189320833,1.82540428,1991.6,1991.3,0.0011]
[1772189321038,1.82540428,1991.8,1991.3,0.0011]
[1772189321562,3.08055187,1991.8,1991.3,0.0011]
[1772189324091,1.82540428,1992.2,1991.3,0.0011]
[1772189324243,1.82540428,1992.2,1991.5,2.82464728]
[1772189324443,1.82540428,1992.2,1991.4,2.82464728]
[1772189325055,1.82540428,1992.2,1991.5,1.25533517]
[1772189326148,1.82540428,1992.1,1991.5,1.25533517]
[1772189326547,1.82540428,1992.1,1991.3,1.25654327]
[1772189327147,1.82540428,1991.9,1991.3,0.0011]
[1772189329379,1.82540428,1992.1,1991.3,0.0011]
[1772189331676,1.82540428,1992.0,1991.3,0.0011]
[1772189332759,1.82540428,1992.0,1991.4,0.0011]
[1772189333079,1.82640428,1992.0,1991.4,0.0011]
[1772189333582,1.82540428,1991.8,1991.4,0.0011]
[1772189337481,3.08055231,1991.8,1991.4,0.0011]
[1772189337682,1.82540428,1991.8,1991.4,0.0011]
[1772189337851,3.08055708,1991.8,1991.4,0.0011]
[1772189338050,1.82540428,1991.8,1991.4,0.0011]
[1772189340591,1.82540428,1991.7,1991.4,0.0011]
[1772189340958,1.82540428,1991.6,1991.4,0.0011]
[1772189342383,1.82540428,1991.8,1991.4,0.0011]
[1772189344577,1.82640428,1992.0,1991.4,0.0011]
[1772189344778,5.0197383,1992.2,1991.6,2.82464728]
[1772189344779,1.82540428,1992.2,1991.6,2.82464728]
[1772189345165,1.82540428,1992.2,1991.7,1.25520911]
[1772189345366,1.82540428,1992.6,1991.9,2.82464728]
[1772189346059,5.01794042,1992.9,1991.9,2.82464728]
[1772189346060,0.001,1993.1,1991.9,2.82464728]
[1772189346263,1.82540428,1993.0,1992.1,2.13485338]
[1772189346984,1.82540428,1993.0,1992.0,2.82464728]
[1772189347173,1.82540428,1992.8,1992.1,1.25495708]
[1772189347762,1.82540428,1992.9,1992.1,1.25495708]
[1772189349560,1.82540428,1992.7,1992.1,1.25495708]
[1772189350269,1.82540428,1992.7,1991.8,1.25514609]
[1772189351300,0.001,1993.1,1991.9,2.82464728]
[1772189351460,2.55729834,1993.9,1991.8,1.25514609]
[1772189351461,1.82540428,1993.4,1992.9,2.82464728]
[1772189351665,2.55729834,1993.9,1993.0,1.25439036]
[1772189351666,3.07942373,1993.6,1993.0,1.25439036]
[1772189351865,2.55729834,1993.9,1992.7,1.25451625]
[1772189351866,1.82540428,1993.5,1992.7,1.25451625]
[1772189352106,1.82540428,1993.5,1992.7,4.07916353]
[1772189352959,1.76540428,1993.5,1992.7,4.07916353]
[1772189354629,1.79540428,1993.9,1993.3,2.82464728]
[1772189355976,1.79540428,1993.9,1993.4,1.25413865]
[1772189362127,1.79540428,1993.9,1993.5,2.01449451]
[1772189362286,1.79540428,1993.9,1993.4,1.25413865]
[1772189362681,1.79540428,1993.9,1993.4,3.26863316]
[1772189362906,0.001,1994.0,1993.4,3.26863316]
[1772189363212,1.79640428,1994.0,1993.4,3.26863316]
[1772189364325,0.001,1994.0,1993.6,2.01449451]
[1772189364503,0.001,1994.6,1994.0,1.76492982]
[1772189364685,0.001,1994.6,1994.3,2.01449451]
[1772189365034,0.001,1994.6,1993.7,1.76492982]
[1772189365035,1.76205244,1994.5,1993.7,1.76492982]
[1772189365318,1.76205244,1994.4,1993.9,1.25382416]
[1772189366790,1.76205244,1994.4,1993.8,1.25384564]
[1772189367207,1.76305244,1994.6,1993.9,1.76722295]
[1772189367420,1.76205244,1994.5,1994.0,1.25376128]
[1772189367721,0.001,1994.6,1994.0,3.02098423]
[1772189368289,0.001,1994.6,1994.2,2.01449451]
[1772189368730,0.001,1994.6,1994.2,3.78248204]
[1772189368927,1.76305244,1994.5,1994.0,1.25376128]
[1772189369329,1.76305244,1994.5,1993.9,6.78393485]
[1772189369839,0.001,1994.5,1994.0,1.768725]
[1772189370401,1.76305244,1994.5,1993.9,5.01520985]
[1772189370605,1.76205244,1994.4,1993.6,1.2539872]
[1772189372127,1.76205244,1994.4,1993.5,5.01733033]
[1772189372128,1.76205244,1994.2,1993.5,5.01733033]
[1772189373464,1.76205244,1994.2,1993.6,1.77125216]
[1772189373965,1.76205244,1994.2,1993.5,0.0011]
[1772189374267,1.76205244,1994.0,1993.5,0.0011]
[1772189375662,1.76205244,1994.0,1993.2,1.25536449]
[1772189376238,1.76205244,1993.8,1993.2,0.0011]
[1772189376867,1.76205244,1993.8,1993.3,2.01449451]
[1772189377066,1.76205244,1994.0,1993.3,3.78857424]
[1772189377280,1.76205244,1994.0,1993.3,1.77407973]
[1772189379372,1.76205244,1994.0,1993.4,1.25413865]
[1772189380011,3.01581585,1994.0,1993.4,1.25413865]
[1772189380495,2.97291612,1994.0,1993.4,1.25413865]
[1772189380872,1.71915271,1993.9,1993.5,0.0011]
[1772189381571,2.97301291,1993.9,1993.5,0.0011]
[1772189382274,1.71915271,1993.8,1993.5,0.0011]
[1772189382690,1.71915271,1994.0,1993.5,0.0011]
[1772189383075,1.71915271,1994.0,1993.5,1.69944159]
[1772189383478,1.71915271,1993.9,1993.5,0.0011]
[1772189386994,1.71915271,1993.7,1993.5,0.0011]
[1772189388679,1.71915271,1993.8,1993.5,0.0011]
[1772189389798,1.71915271,1993.6,1992.6,2.9529208]
[1772189390007,1.71915271,1993.6,1992.8,1.69834159]
[1772189391081,1.71915271,1993.6,1991.6,1.69834159]
[1772189391288,2.97354307,1993.0,1992.1,1.69834159]
[1772189392683,1.71915271,1992.7,1991.9,2.01502977]
[1772189392886,1.71915271,1992.7,1991.9,1.69834159]
[1772189393404,1.71915271,1992.5,1991.7,1.69834159]
[1772189395506,1.71915271,1992.5,1991.8,1.25514609]
[1772189395507,2.97385831,1992.5,1991.8,1.25514609]
[1772189395714,1.71915271,1992.5,1991.8,1.25514609]
[1772189395918,1.71915271,1992.5,1991.8,2.95348768]
[1772189396603,1.71915271,1992.9,1992.0,1.69834159]
[1772189396806,5.01742831,1993.1,1992.3,3.71337136]
[1772189396807,2.97348013,1993.1,1992.3,3.71337136]
[1772189397119,1.71915271,1992.7,1991.8,1.25514609]
[1772189397622,1.71915271,1992.5,1991.8,1.25514609]
[1772189398185,2.9737691,1992.7,1991.9,1.69834159]
[1772189399348,1.71915271,1992.6,1991.9,1.69834159]
[1772189400328,1.71915271,1992.4,1991.5,0.0011]
[1772189400540,1.71915271,1992.2,1991.5,0.0011]
[1772189400821,1.71915271,1992.2,1991.5,1.25642587]
[1772189401021,1.71915271,1992.2,1991.5,2.95476746]
[1772189401826,1.71915271,1992.2,1991.5,1.25642587]
[1772189402256,1.71915271,1992.2,1991.5,1.2564337]
[1772189402401,1.71915271,1992.0,1991.5,0.0011]
[1772189403697,1.71915271,1992.0,1991.3,0.0011]
[1772189404003,1.71915271,1992.0,1991.2,0.0011]
[1772189404004,1.71915271,1991.8,1991.0,1.25674665]
[1772189404195,1.71915271,1991.6,1991.0,0.0011]
[1772189404527,1.71915271,1991.4,1991.0,0.0011]
[1772189405132,1.71915271,1991.2,1990.2,2.95449675]
[1772189405428,1.71915271,1991.2,1990.3,1.69834159]
[1772189405598,1.71915271,1991.2,1990.1,1.26217756]
[1772189406046,1.71915271,1991.2,1990.2,1.69834159]
[1772189406195,1.04,1991.3,1990.1,1.26220626]
[1772189406196,1.71915271,1991.0,1990.1,1.26220626]
[1772189406525,1.71915271,1990.8,1990.1,0.006]
[1772189406927,1.71915271,1990.6,1989.5,6.72466733]
[1772189407228,1.71915271,1990.6,1989.6,1.69834159]
[1772189407632,1.71915271,1990.6,1989.5,7.04135551]
[1772189407797,1.71915271,1990.6,1989.5,8.7396971]
[1772189408232,1.71915271,1990.2,1989.1,1.69834159]
[1772189408415,2.97531322,1990.2,1989.3,4.97009483]
[1772189408725,2.97531088,1990.2,1989.3,4.97009483]
[1772189409301,1.71915271,1990.2,1989.3,4.97009483]
[1772189409499,1.71915271,1990.2,1989.4,1.69834159]
[1772189409699,0.813,1990.6,1989.1,2.01502977]
[1772189409700,1.71915271,1990.1,1989.3,1.69834159]
[1772189409923,1.71915271,1990.6,1989.7,1.79245833]
[1772189410133,1.71915271,1990.6,1989.6,1.79245833]
[1772189410641,1.64132574,1990.4,1989.6,1.25653397]
[1772189411313,1.64132574,1990.4,1989.5,1.25655159]
[1772189411907,1.64132574,1990.4,1989.6,1.79245833]
[1772189412134,2.89727824,1990.6,1989.6,1.79245833]
[1772189412332,1.64132574,1990.5,1989.7,2.01502977]
[1772189412502,1.64132574,1990.5,1989.8,1.25640767]
[1772189413003,1.64132574,1990.4,1989.8,1.25640767]
[1772189414006,1.64132574,1990.4,1989.2,5.02697007]
[1772189414007,1.64132574,1990.3,1989.3,5.02681308]
[1772189414206,1.64132574,1990.3,1989.3,1.25672347]
[1772189414709,1.64132574,1990.1,1989.1,1.25684983]
[1772189415543,1.64132574,1990.1,1988.7,5.02837966]
[1772189415719,1.64132574,1989.6,1988.7,1.25710262]
[1772189416810,1.64132574,1989.4,1988.6,5.02842596]
[1772189417143,1.64132574,1989.4,1988.4,5.0289358]
[1772189417438,1.64132574,1989.4,1988.1,3.27246143]
[1772189417731,1.64132574,1989.2,1988.1,3.27246143]
[1772189417899,1.64132574,1989.2,1988.1,1.25743166]
[1772189418306,1.64132574,1989.2,1988.3,1.79245833]
[1772189418535,1.64132574,1989.2,1988.2,3.59327342]
[1772189418837,1.64132574,1989.0,1988.3,1.25735552]
[1772189419012,1.64132574,1989.0,1988.2,1.25737836]
[1772189419834,1.64132574,1989.0,1988.6,0.0011]
[1772189420821,2.89808641,1989.3,1988.6,0.0011]
[1772189421009,1.64132574,1989.2,1988.6,0.0011]
[1772189421205,2.68115865,1989.7,1988.6,0.0011]
[1772189421206,1.64132574,1989.8,1988.8,1.79245833]
[1772189421406,1.64132574,1989.8,1988.9,1.79245833]
[1772189421808,5.02481472,1990.2,1988.9,1.79245833]
[1772189421809,1.64132574,1990.1,1988.9,1.79245833]
[1772189422138,6.75419079,1990.4,1989.2,1.79245833]
[1772189422139,1.64132574,1990.4,1989.2,1.79245833]
[1772189422440,1.64132574,1990.2,1989.1,11.746977]
[1772189422741,1.64132574,1990.2,1989.0,1.79245833]
[1772189423510,1.64132574,1990.0,1988.7,6.82061601]
[1772189423812,1.64132574,1989.8,1988.7,6.82061601]
[1772189424711,1.64132574,1989.6,1988.6,1.25825522]
[1772189425212,1.64132574,1989.6,1988.6,0.0011]
[1772189425410,4.69115865,1989.9,1988.6,0.0011]
[1772189425411,1.64132574,1989.3,1988.6,0.0011]
[1772189425837,1.64132574,1989.1,1988.6,0.0011]
[1772189426930,1.25678664,1989.2,1988.6,0.0011]
[1772189427617,1.64132574,1989.3,1988.6,0.0011]
[1772189427930,2.68115865,1989.9,1988.6,0.0011]
[1772189427931,1.64132574,1989.6,1988.6,0.0011]
[1772189428122,1.64132574,1989.6,1988.7,2.83283067]
[1772189428123,2.89786395,1989.6,1988.7,2.83283067]
[1772189428319,2.89786395,1989.6,1988.6,1.79355833]
[1772189429147,5.57887925,1989.9,1988.6,1.79355833]
[1772189429329,2.8976712,1989.9,1989.0,1.79245833]
[1772189429536,2.89757392,1990.1,1989.0,1.79245833]
[1772189429863,1.64132574,1990.0,1989.0,1.79245833]
[1772189430050,2.89765065,1990.0,1989.1,1.25684983]
[1772189431056,1.64132574,1989.9,1988.9,1.79245833]
[1772189432056,1.64132574,1989.7,1988.8,5.02814891]
[1772189432231,1.64132574,1989.7,1988.7,1.25705304]
[1772189432858,1.64132574,1989.7,1988.6,0.0011]
[1772189433060,1.64132574,1989.7,1988.6,1.25825481]
[1772189433728,2.01,1989.6,1988.6,1.25825481]
[1772189433931,1.64132574,1989.5,1988.6,0.0011]
[1772189434135,1.64132574,1989.5,1988.5,0.0011]
[1772189434136,1.64132574,1989.2,1988.3,0.0011]
[1772189434945,1.64132574,1989.2,1988.3,1.78864017]
[1772189435346,1.64132574,1989.2,1988.3,0.0011]
[1772189436364,1.25684983,1989.1,1988.3,1.25845552]
[1772189436662,1.64132574,1989.0,1988.3,1.25845552]
[1772189436955,1.64132574,1989.0,1988.3,0.0011]
[1772189437462,1.64132574,1988.7,1987.2,6.81005331]
[1772189437758,1.64132574,1988.5,1987.5,1.77800188]
[1772189438064,1.25684983,1989.1,1983.5,2.54898515]
[1772189438065,1.49279461,1984.5,1983.5,2.54898515]
[1772189438269,1.25989013,1984.3,1982.7,8.99794329]
[1772189438468,1.25989013,1984.3,1983.0,1.69497914]
[1772189438469,1.21868596,1984.3,1983.0,1.69497914]
[1772189438633,0.26327952,1984.4,1983.0,1.69497914]
[1772189438961,0.26327952,1984.4,1983.2,1.69497914]
[1772189438962,2.6406431,1984.3,1983.2,1.69497914]
[1772189439136,2.66841472,1984.3,1983.2,1.69497914]
[1772189439336,12.67448438,1985.0,1983.4,9.11178]
[1772189439538,11.42322897,1985.0,1983.3,14.867698]
[1772189439738,1.25949977,1985.0,1983.2,1.69497914]
[1772189439951,1.25949977,1985.0,1984.5,0.485826]
[1772189440160,1.25949977,1985.0,1983.3,14.254678]
[1772189440341,1.25949977,1985.0,1983.2,1.69497914]
[1772189440342,3.37179784,1985.0,1983.5,1.26039828]
[1772189440545,2.11229807,1985.0,1983.5,4.1070483]
[1772189440745,1.25905833,1985.7,1984.3,2.84665002]
[1772189440943,0.787891,1985.8,1985.1,2.84665002]
[1772189441132,2.11229807,1986.6,1984.6,2.84665002]
[1772189441336,2.11229807,1986.6,1985.1,0.08192]
[1772189441653,1.25834498,1986.8,1985.2,5.71838]
[1772189441840,1.25834498,1986.8,1985.1,0.08192]
[1772189442041,1.25834498,1986.8,1985.2,3.8081]
[1772189442476,2.11229807,1986.8,1984.8,3.810663]
[1772189442786,2.11229807,1986.0,1984.4,28.099223]
[1772189443144,2.4594034,1986.7,1984.8,10.929751]
[1772189443370,2.11229807,1986.7,1985.1,5.969906]
[1772189443639,2.11229807,1986.7,1984.6,2.84665002]
[1772189443839,2.29915431,1986.6,1984.7,0.08192]
[1772189444042,2.29915431,1986.6,1984.7,2.28672298]
[1772189444243,2.29915431,1986.6,1984.8,2.20480298]
[1772189444468,2.29915431,1986.3,1984.8,2.20480298]
[1772189444641,2.29915431,1986.3,1984.5,1.25972557]
[1772189445150,2.29915431,1986.3,1984.6,2.20480298]
[1772189445368,2.11229807,1986.3,1984.8,2.20480298]
[1772189446649,1.25868492,1986.2,1984.8,3.4643232]
[1772189448143,1.25868492,1986.2,1984.8,3.3855232]
[1772189448376,2.11229807,1986.1,1984.8,2.12600298]
[1772189448557,2.11229807,1985.8,1984.4,2.20480298]
[1772189448751,3.37129993,1985.7,1984.4,2.20480298]
[1772189448939,3.37129993,1985.7,1984.4,3.46462907]
[1772189449144,3.37129993,1985.7,1984.4,2.20480298]
[1772189449467,2.11229807,1985.6,1984.2,7.73478816]
[1772189450396,5.03518427,1986.1,1984.7,2.20480298]
[1772189451245,2.85696797,1986.0,1984.7,2.20480298]
[1772189451570,2.11229807,1986.2,1984.8,1.25957275]
[1772189451751,4.96956699,1986.1,1984.7,3.4643902]
[1772189451946,2.85726892,1986.0,1984.7,3.4643902]
[1772189453169,4.96956699,1986.0,1984.7,3.46443439]